bitfinex/quotes_BTCUSD_20251113
["timestamp","ask_amount","ask_price","bid_price","bid_amount"]
[1763029337210,0.86958856,103200.0,103190.0,0.00013964]
[1763029337653,1.12294679,103200.0,103190.0,0.00013964]
[1763029338479,1.12294679,103200.0,103190.0,0.02013964]
[1763029338737,1.12294679,103200.0,103190.0,0.00013964]
[1763029339135,1.12294679,103200.0,103190.0,0.02013964]
[1763029339374,1.12294679,103200.0,103190.0,0.00013964]
[1763029340554,0.57711844,103200.0,103190.0,0.00013964]
[1763029340799,0.06032,103200.0,103190.0,0.21395687]
[1763029341467,0.001,103200.0,103190.0,0.4873851]
[1763029341675,0.001,103200.0,103190.0,0.5440251]
[1763029342504,0.001,103200.0,103190.0,0.77738333]
[1763029342707,0.001,103200.0,103190.0,0.5240251]
[1763029342918,0.25411844,103200.0,103190.0,0.04253964]
[1763029343131,0.25411844,103200.0,103190.0,0.00013964]
[1763029343341,0.25411844,103200.0,103190.0,0.02013964]
[1763029343548,0.33077553,103200.0,103190.0,0.00013964]
[1763029343764,0.58413376,103200.0,103190.0,0.00013964]
[1763029343978,0.58413376,103200.0,103190.0,0.06253964]
[1763029344632,0.58413376,103200.0,103190.0,0.04253964]
[1763029344780,0.50747667,103200.0,103190.0,0.04253964]
[1763029346640,0.50747667,103200.0,103190.0,0.06253964]
[1763029346840,0.50747667,103200.0,103190.0,0.04253964]
[1763029347358,0.50747667,103200.0,103190.0,0.06253964]
[1763029347761,0.50747667,103200.0,103190.0,0.00013964]
[1763029348003,0.50747667,103200.0,103190.0,0.04253964]
[1763029348803,0.50747667,103200.0,103190.0,0.06253964]
[1763029350815,0.50747667,103200.0,103190.0,0.04253964]
[1763029351041,0.50747667,103200.0,103190.0,0.06253964]
[1763029351589,0.50747667,103200.0,103190.0,0.04253964]
[1763029351797,0.58413376,103200.0,103190.0,0.04253964]
[1763029352670,0.58413376,103200.0,103190.0,0.06253964]
[1763029354012,0.58413376,103200.0,103190.0,0.04253964]
[1763029354229,0.58413376,103200.0,103190.0,0.00013964]
[1763029354435,0.85561116,103200.0,103190.0,0.06249964]
[1763029354656,0.85561116,103200.0,103190.0,0.04249964]
[1763029354886,1.17861116,103200.0,103190.0,0.00013964]
[1763029355977,1.17861116,103200.0,103190.0,0.02013964]
[1763029356892,1.17861116,103200.0,103190.0,0.00013964]
[1763029357102,0.92525293,103200.0,103190.0,0.02013964]
[1763029357728,0.92525293,103200.0,103190.0,0.00013964]
[1763029357923,1.17861116,103200.0,103190.0,0.00013964]
[1763029358140,0.92525293,103200.0,103190.0,0.02013964]
[1763029358971,1.42111116,103200.0,103190.0,0.02013964]
[1763029359219,1.18462293,103200.0,103190.0,0.02013964]
[1763029359434,1.18462293,103200.0,103190.0,0.00013964]
[1763029359840,1.18462293,103200.0,103190.0,0.02013964]
[1763029361062,1.18462293,103200.0,103190.0,0.00013964]
[1763029361559,1.18462293,103200.0,103190.0,0.02013964]
[1763029363877,0.9312647,103200.0,103190.0,0.02013964]
[1763029364082,0.53160761,103200.0,103190.0,0.00013964]
[1763029364300,0.53160761,103200.0,103190.0,0.02013964]
[1763029365532,0.78496584,103200.0,103190.0,0.02013964]
[1763029366823,0.78496584,103200.0,103190.0,0.00013964]
[1763029367032,0.80422604,103200.0,103190.0,0.00013964]
[1763029367234,0.55086781,103200.0,103190.0,0.02013964]
[1763029367493,0.80422604,103200.0,103190.0,0.02013964]
[1763029367715,0.78496584,103200.0,103190.0,0.02013964]
[1763029369270,0.76684667,103200.0,103190.0,0.02013964]
[1763029371013,0.95998212,103200.0,103190.0,0.02013964]
[1763029371454,0.51348844,103200.0,103190.0,0.02013964]
[1763029371659,0.95998212,103200.0,103190.0,0.02013964]
[1763029372777,0.96982711,103200.0,103190.0,0.00013964]
[1763029372998,1.19307395,103200.0,103190.0,0.00013964]
[1763029373221,1.19307395,103200.0,103190.0,0.02013964]
[1763029373838,1.19307395,103200.0,103190.0,0.00013964]
[1763029374197,1.19307395,103200.0,103190.0,0.02013964]
[1763029374651,1.19307395,103200.0,103190.0,0.00013964]
[1763029374880,1.11876233,103200.0,103190.0,0.00013964]
[1763029375834,1.11876233,103200.0,103190.0,0.02013964]
[1763029376413,0.82104788,103200.0,103190.0,0.00013964]
[1763029376614,1.11876233,103200.0,103190.0,0.02013964]
[1763029376951,0.82104788,103200.0,103190.0,0.02013964]
[1763029378906,1.11876233,103200.0,103190.0,0.02013964]
[1763029380233,1.11876233,103200.0,103190.0,0.06241964]
[1763029381687,0.51348844,103200.0,103190.0,0.04241964]
[1763029381907,0.81120289,103200.0,103190.0,0.06241964]
[1763029382112,0.51348844,103200.0,103190.0,0.06241964]
[1763029382320,0.27098844,103200.0,103190.0,0.06241964]
[1763029383636,0.56870289,103200.0,103190.0,0.06241964]
[1763029384665,0.27098844,103200.0,103190.0,0.06241964]
[1763029384933,0.56870289,103200.0,103190.0,0.04241964]
[1763029385374,0.63076131,103200.0,103190.0,0.06241964]
[1763029387315,0.27098844,103200.0,103190.0,0.04241964]
[1763029387531,0.27098844,103200.0,103190.0,0.06241964]
[1763029387945,0.56870289,103200.0,103190.0,0.06241964]
[1763029389379,0.56870289,103200.0,103190.0,0.04241964]
[1763029390055,0.56870289,103200.0,103190.0,0.06241964]
[1763029393049,0.56870289,103200.0,103190.0,0.04241964]
[1763029393346,0.63027419,103200.0,103190.0,0.04241964]
[1763029394167,0.63027419,103200.0,103190.0,0.06241964]
[1763029394385,0.63027419,103200.0,103190.0,0.02013964]
[1763029394590,1.25098864,103200.0,103190.0,0.00013964]
[1763029394810,1.25098864,103200.0,103190.0,0.06237964]
[1763029395219,1.25098864,103200.0,103190.0,0.04237964]
[1763029395997,1.25098864,103200.0,103190.0,0.06237964]
[1763029396199,0.65555974,103200.0,103190.0,0.04237964]
[1763029396389,0.95327419,103200.0,103190.0,0.06237964]
[1763029397250,1.25098864,103200.0,103190.0,0.06237964]
[1763029398298,1.25098864,103200.0,103190.0,0.02013964]
[1763029399269,1.25098864,103200.0,103190.0,0.00013964]
[1763029399470,1.25098864,103200.0,103190.0,0.02013964]
[1763029399718,0.95327419,103200.0,103190.0,0.02013964]
[1763029401713,0.98236621,103200.0,103190.0,0.02013964]
[1763029403174,1.28008066,103200.0,103190.0,0.02013964]
[1763029403375,0.98236621,103200.0,103190.0,0.02013964]
[1763029404046,1.28008066,103200.0,103190.0,0.00013964]
[1763029404431,1.2982475,103200.0,103190.0,0.00013964]
[1763029404871,1.2982475,103200.0,103190.0,0.02013964]
[1763029405701,1.2982475,103200.0,103190.0,0.00013964]
[1763029405920,1.34166624,103200.0,103190.0,0.00013964]
[1763029406342,1.76299223,103200.0,103190.0,0.25013964]
[1763029406565,0.24205919,103170.0,103160.0,0.04455717]
[1763029406799,0.57412364,103170.0,103160.0,0.06469694]
[1763029407001,0.60371364,103170.0,103160.0,0.04469694]
[1763029407662,0.70011312,103170.0,103160.0,0.02249694]
[1763029407877,0.70011312,103170.0,103160.0,0.04469694]
[1763029408097,0.70011312,103170.0,103160.0,0.06469694]
[1763029408314,0.70011312,103170.0,103160.0,0.04469694]
[1763029408526,0.70011312,103170.0,103160.0,0.06469694]
[1763029409289,0.70011312,103170.0,103160.0,0.02249694]
[1763029409488,0.70011312,103170.0,103160.0,0.00249694]
[1763029409778,0.70011312,103170.0,103160.0,0.02249694]
[1763029410646,0.70011312,103170.0,103160.0,0.00249694]
[1763029410993,1.05221363,103170.0,103160.0,0.00249694]
[1763029411424,1.05221363,103170.0,103160.0,0.02249694]
[1763029411599,1.05221363,103170.0,103160.0,0.00249694]
[1763029411971,1.05221363,103170.0,103160.0,0.02249694]
[1763029413588,1.05221363,103170.0,103160.0,0.00249694]
[1763029413794,1.05221363,103170.0,103160.0,0.02249694]
[1763029414611,1.05221363,103170.0,103160.0,0.00249694]
[1763029415049,1.05221363,103170.0,103160.0,0.02249694]
[1763029415253,1.05221363,103170.0,103160.0,0.00249694]
[1763029415394,1.05221363,103170.0,103160.0,0.02249694]
[1763029416256,1.05221363,103170.0,103160.0,0.00249694]
[1763029416486,1.05221363,103170.0,103160.0,0.02249694]
[1763029417625,1.40334681,103170.0,103160.0,0.00249694]
[1763029419842,1.40434681,103170.0,103160.0,0.00249694]
[1763029420273,1.42244067,103170.0,103160.0,0.00249694]
[1763029420707,1.49682389,103170.0,103160.0,0.00249694]
[1763029424183,1.18910945,103170.0,103160.0,0.02249694]
[1763029424398,1.23130945,103170.0,103160.0,0.00249694]
[1763029424776,1.5290239,103170.0,103160.0,0.02249694]
[1763029425022,1.23130945,103170.0,103160.0,0.00249694]
[1763029425227,1.23130945,103170.0,103160.0,0.02249694]
[1763029425420,1.24130944,103170.0,103160.0,0.00249694]
[1763029425656,1.23130945,103170.0,103160.0,0.00249694]
[1763029425873,1.24130944,103170.0,103160.0,0.00249694]
[1763029427263,0.97490801,103170.0,103160.0,0.00249694]
[1763029427465,0.95681415,103170.0,103160.0,0.00249694]
[1763029427696,0.95681415,103170.0,103160.0,0.02249694]
[1763029427860,0.97490382,103170.0,103160.0,0.00249694]
[1763029428406,0.97490382,103170.0,103160.0,0.02249694]
[1763029428552,1.0713033,103170.0,103160.0,0.00249694]
[1763029428760,1.0713033,103170.0,103160.0,0.02249694]
[1763029429591,1.0713033,103170.0,103160.0,0.00249694]
[1763029429844,0.77358885,103170.0,103160.0,0.00249694]
[1763029430097,1.0713033,103170.0,103160.0,0.02249694]
[1763029430301,1.07131284,103170.0,103160.0,0.00249694]
[1763029430457,1.07131284,103170.0,103160.0,0.02249694]
[1763029431218,1.07131284,103170.0,103160.0,0.00249694]
[1763029432959,1.07131284,103170.0,103160.0,0.02249694]
[1763029433154,1.07131284,103170.0,103160.0,0.00249694]
[1763029435204,1.07131284,103170.0,103160.0,0.02249694]
[1763029435958,1.07131284,103170.0,103160.0,0.00249694]
[1763029436606,1.42244602,103170.0,103160.0,0.00249694]
[1763029436838,0.49162563,103140.0,103130.0,5.0422]
[1763029437045,0.70419556,103140.0,103130.0,5.0422]
[1763029437710,0.70419556,103140.0,103130.0,5.0622]
[1763029438155,0.25714762,103140.0,103130.0,5.0622]
[1763029438373,0.48067159,103140.0,103130.0,5.0622]
[1763029438849,2.14150165,103140.0,103130.0,1.37740746]
[1763029439061,2.20061019,103140.0,103130.0,1.19558967]
[1763029439282,2.20061019,103140.0,103130.0,1.01797771]
[1763029439500,2.20061019,103140.0,103130.0,0.77181507]
[1763029439714,2.20061019,103140.0,103130.0,0.5929296]
[1763029440156,2.20061019,103140.0,103130.0,0.01391463]
[1763029440370,0.19400523,103090.0,103080.0,0.09456]
[1763029440590,0.19400523,103090.0,103080.0,0.31808397]
[1763029440802,0.19400523,103090.0,103080.0,0.30740397]
[1763029441002,0.19400523,103090.0,103080.0,0.11219]
[1763029441417,0.19400523,103090.0,103080.0,0.33571397]
[1763029441650,0.19405163,103090.0,103080.0,0.33571397]
[1763029441787,0.19405163,103090.0,103080.0,0.11419]
[1763029441997,0.4175756,103090.0,103080.0,0.11419]
[1763029442202,0.4175756,103090.0,103080.0,0.08588]
[1763029442412,0.64109957,103090.0,103080.0,0.04356]
[1763029442606,0.64109957,103090.0,103080.0,0.08588]
[1763029442835,0.64109957,103090.0,103080.0,0.0696724]
[1763029443405,0.65919151,103090.0,103080.0,0.0696724]
[1763029443620,4.64e-05,103090.0,103080.0,0.33966637]
[1763029443855,4.64e-05,103090.0,103080.0,1.97231027]
[1763029444074,4.64e-05,103090.0,103080.0,1.30273836]
[1763029447209,4.64e-05,103090.0,103080.0,1.69273836]
[1763029447932,4.64e-05,103090.0,103080.0,1.72184991]
[1763029448558,4.64e-05,103090.0,103080.0,1.051278]
[1763029448767,4.64e-05,103090.0,103080.0,1.72184991]
[1763029450729,4.64e-05,103090.0,103080.0,1.49832594]
[1763029452104,4.64e-05,103090.0,103080.0,1.72184991]
[1763029452715,4.64e-05,103090.0,103080.0,2.39242182]
[1763029453279,4.64e-05,103090.0,103080.0,1.72184991]
[1763029453885,4.64e-05,103090.0,103080.0,1.72084991]
[1763029454088,4.64e-05,103090.0,103080.0,1.49936594]
[1763029455785,4.64e-05,103090.0,103080.0,1.49932594]
[1763029456201,4.64e-05,103090.0,103080.0,1.72284991]
[1763029456599,4.64e-05,103090.0,103080.0,1.052278]
[1763029456804,4.64e-05,103090.0,103080.0,1.72284991]
[1763029458527,4.64e-05,103090.0,103080.0,2.43684056]
[1763029459383,0.20364918,103160.0,103130.0,0.19392757]
[1763029459610,0.43560348,103160.0,103150.0,0.0413]
[1763029459812,0.43560348,103160.0,103150.0,0.01]
[1763029460014,0.65912745,103160.0,103150.0,0.01]
[1763029460189,0.43560348,103160.0,103150.0,0.01]
[1763029460846,0.21207951,103160.0,103150.0,0.01]
[1763029461053,0.21207951,103160.0,103150.0,0.11305]
[1763029461281,0.21199759,103160.0,103150.0,0.11305]
[1763029461628,0.21199759,103160.0,103150.0,0.01]
[1763029461860,0.50872077,103160.0,103150.0,0.01]
[1763029462100,0.46586851,103160.0,103150.0,0.01]
[1763029462533,0.21199759,103160.0,103150.0,0.01]
[1763029462747,0.21299759,103160.0,103150.0,0.01]
[1763029463880,0.46686851,103160.0,103150.0,0.01]
[1763029464087,0.46686851,103160.0,103150.0,0.05232]
[1763029464913,0.21299759,103160.0,103150.0,0.05256388]
[1763029466380,0.19492015,103160.0,103150.0,0.05256388]
[1763029466873,0.19492015,103160.0,103150.0,0.08386388]
[1763029469873,0.19492015,103160.0,103150.0,0.05256388]
[1763029472282,0.21036731,103160.0,103150.0,0.05256388]
[1763029472495,0.21036731,103160.0,103150.0,0.12450388]
[1763029472670,0.00104656,103160.0,103150.0,0.63217718]
[1763029472920,0.19492015,103160.0,103150.0,0.4382848]
[1763029473105,0.19492015,103160.0,103150.0,0.63217718]
[1763029473702,0.19492015,103160.0,103150.0,0.37830626]
[1763029474568,0.19492015,103160.0,103150.0,0.08271388]
[1763029474779,0.19492015,103160.0,103150.0,0.09435388]
[1763029475013,0.19492015,103160.0,103150.0,0.34815626]
[1763029475193,0.19492015,103160.0,103150.0,0.15426388]
[1763029476374,0.19492015,103160.0,103150.0,0.05256388]
[1763029477277,0.19492015,103160.0,103150.0,0.24645626]
[1763029477477,0.19492015,103160.0,103150.0,0.28824626]
[1763029477685,0.19492015,103160.0,103150.0,0.34815626]
[1763029478846,0.00104656,103160.0,103150.0,0.34815626]
[1763029479272,0.19492015,103160.0,103150.0,0.37830626]
[1763029481344,0.19492015,103160.0,103150.0,0.18441388]
[1763029481746,0.19492015,103160.0,103150.0,0.37830626]
[1763029481949,0.00104656,103160.0,103150.0,0.37830626]
[1763029482837,0.00104656,103160.0,103150.0,0.60168307]
[1763029483281,0.19492015,103160.0,103150.0,0.60168307]
[1763029483848,0.19492015,103160.0,103150.0,0.18441388]
[1763029484033,0.19492015,103160.0,103150.0,0.40779069]
[1763029484652,0.19492015,103160.0,103150.0,0.18441388]
[1763029485426,0.41829696,103160.0,103150.0,0.18441388]
[1763029486969,0.41829696,103160.0,103150.0,0.18433388]
[1763029487309,0.19492015,103160.0,103150.0,0.18433388]
[1763029487519,0.21304028,103160.0,103150.0,0.18433388]
[1763029487720,0.21304028,103160.0,103150.0,0.40771069]
[1763029488693,0.21304028,103160.0,103150.0,0.18433388]
[1763029489060,0.43641709,103160.0,103150.0,0.14209388]
[1763029489199,0.43641709,103160.0,103150.0,0.12442388]
[1763029490010,0.21304028,103160.0,103150.0,0.12442388]
[1763029490239,0.01916669,103160.0,103150.0,0.60160307]
[1763029490635,0.01916669,103160.0,103150.0,0.82497988]
[1763029490897,0.21304028,103160.0,103150.0,0.60160307]
[1763029491103,0.01916669,103160.0,103150.0,0.60160307]
[1763029491449,0.88317071,103160.0,103150.0,0.01024388]
[1763029491716,0.88317071,103160.0,103150.0,0.05248388]
[1763029491869,0.6597939,103160.0,103150.0,0.05248388]
[1763029492536,0.88317071,103160.0,103150.0,0.05248388]
[1763029494187,0.88317071,103160.0,103150.0,0.01024388]
[1763029494416,0.88317071,103160.0,103150.0,0.05248388]
[1763029496373,0.97957019,103160.0,103150.0,0.05248388]
[1763029499033,0.90535374,103160.0,103150.0,0.05248388]
[1763029500217,0.88723361,103160.0,103150.0,0.05248388]
[1763029500371,0.3094719,103160.0,103150.0,0.05248388]
[1763029500573,0.8089864,103160.0,103150.0,0.05248388]
[1763029501219,0.8089864,103160.0,103150.0,0.01024388]
[1763029501439,1.1319864,103160.0,103150.0,0.01024388]
[1763029501638,1.14106147,103160.0,103150.0,0.01024388]
[1763029502085,1.16197345,103160.0,103150.0,0.01024388]
[1763029502278,1.55632992,103160.0,103150.0,0.01024388]
[1763029502486,1.25837293,103160.0,103150.0,0.01024388]
[1763029502866,1.25737293,103160.0,103150.0,0.01024388]
[1763029503070,1.55532992,103160.0,103150.0,0.01024388]
[1763029503267,1.23746095,103160.0,103150.0,0.01024388]
[1763029504413,1.23743954,103160.0,103150.0,0.01024388]
[1763029505481,1.2283709,103160.0,103150.0,0.01024388]
[1763029507422,0.53605744,103160.0,103150.0,0.01024388]
[1763029507631,0.51101443,103160.0,103150.0,0.01024388]
[1763029507971,0.51100546,103160.0,103150.0,0.01024388]
[1763029508177,0.21304847,103160.0,103150.0,0.07494388]
[1763029508379,0.21304847,103160.0,103150.0,0.13045388]
[1763029508793,0.19492015,103160.0,103150.0,0.13045388]
[1763029509074,0.19392015,103160.0,103150.0,0.13045388]
[1763029509431,0.19492015,103160.0,103150.0,0.13045388]
[1763029509962,0.19492015,103160.0,103150.0,0.32434626]
[1763029510176,0.19492015,103160.0,103150.0,0.13045388]
[1763029510579,0.56637573,103160.0,103150.0,0.05248388]
[1763029511418,0.49287714,103160.0,103150.0,0.05248388]
[1763029513244,0.79083413,103160.0,103150.0,0.01024388]
[1763029513650,0.79083413,103160.0,103150.0,0.05248388]
[1763029513855,1.11383413,103160.0,103150.0,0.01024388]
[1763029514018,1.13196905,103160.0,103150.0,0.01024388]
[1763029514219,1.22836853,103160.0,103150.0,0.01024388]
[1763029515058,0.63245455,103160.0,103150.0,0.01024388]
[1763029515262,1.22836853,103160.0,103150.0,0.01024388]
[1763029522238,1.25747158,103160.0,103150.0,0.01024388]
[1763029523528,0.56515812,103160.0,103150.0,0.01024388]
[1763029523732,1.1610721,103160.0,103150.0,0.01024388]
[1763029531517,1.1610721,103160.0,103150.0,0.40024388]
[1763029532792,0.56515812,103160.0,103150.0,0.40024388]
[1763029532995,1.1610721,103160.0,103150.0,0.40024388]
[1763029533922,1.19641922,103160.0,103150.0,0.40024388]
[1763029534884,0.86311511,103160.0,103150.0,0.40024388]
[1763029535098,0.51101206,103160.0,103150.0,0.44248388]
[1763029535770,0.51101206,103160.0,103150.0,0.50514388]
[1763029535987,0.21305507,103160.0,103150.0,0.50514388]
[1763029536210,0.51101206,103160.0,103150.0,0.50514388]
[1763029536485,0.58923417,103160.0,103150.0,0.50514388]
[1763029537037,0.58923417,103160.0,103150.0,0.46840388]
[1763029539389,0.51101206,103160.0,103150.0,0.46840388]
[1763029540522,0.51101206,103160.0,103150.0,0.44248388]
[1763029541664,0.49287714,103160.0,103150.0,0.46840388]
[1763029542444,0.19492015,103160.0,103150.0,0.74932626]
[1763029542678,0.19492015,103160.0,103150.0,0.55543388]
[1763029542863,0.19492015,103160.0,103150.0,0.50514388]
[1763029542864,0.49287714,103160.0,103150.0,0.50514388]
[1763029544551,0.19492015,103160.0,103150.0,0.50514388]
[1763029544776,0.19492015,103160.0,103150.0,0.74932626]
[1763029545669,0.00104656,103160.0,103150.0,0.74932626]
[1763029546286,0.19492015,103160.0,103150.0,0.74932626]
[1763029546501,0.00104656,103160.0,103150.0,0.74932626]
[1763029547483,0.00104656,103160.0,103150.0,0.70708626]
[1763029547657,0.00104656,103160.0,103150.0,0.74932626]
[1763029547858,0.19492015,103160.0,103150.0,0.74932626]
[1763029548290,0.00104656,103160.0,103150.0,0.74932626]
[1763029549741,0.19492015,103160.0,103150.0,0.74932626]
[1763029550144,0.00104656,103160.0,103150.0,0.74932626]
[1763029550579,0.19492015,103160.0,103150.0,0.74932626]
[1763029551014,0.00104656,103160.0,103150.0,0.74932626]
[1763029552066,0.00104656,103160.0,103150.0,1.04728325]
[1763029552492,0.00104656,103160.0,103150.0,0.74932626]
[1763029552701,0.00104656,103160.0,103150.0,1.09548764]
[1763029557256,0.00104656,103160.0,103150.0,0.75529065]
[1763029557459,0.00104656,103160.0,103150.0,1.09544764]
[1763029558208,0.00104656,103160.0,103150.0,0.79749065]
[1763029558629,0.00104656,103160.0,103150.0,1.09544764]
[1763029559031,0.00104656,103160.0,103150.0,1.24416731]
[1763029563588,0.00104656,103160.0,103150.0,1.46750564]
[1763029564259,0.00104656,103160.0,103150.0,1.24416731]
[1763029566080,0.00104656,103160.0,103150.0,1.46750564]
[1763029574697,0.00104656,103160.0,103150.0,1.24416731]
[1763029575688,0.19492015,103160.0,103150.0,0.75529065]
[1763029575896,0.19492015,103160.0,103150.0,1.20196731]
[1763029576132,0.00104656,103160.0,103150.0,1.02082898]
[1763029576333,0.19492015,103160.0,103150.0,1.02082898]
[1763029576537,0.00104656,103160.0,103150.0,1.02082898]
[1763029576733,0.19492015,103160.0,103150.0,1.02082898]
[1763029577079,0.19492015,103160.0,103150.0,0.97862898]
[1763029577279,0.41825848,103160.0,103150.0,0.55539388]
[1763029577707,0.19492015,103160.0,103150.0,0.55539388]
[1763029577923,0.19492015,103160.0,103150.0,0.51319388]
[1763029578149,0.19492015,103160.0,103150.0,0.55539388]
[1763029578769,0.19492015,103160.0,103150.0,0.51319388]
[1763029579055,0.9966851,103160.0,103150.0,0.39024388]
[1763029579270,1.01484932,103160.0,103150.0,0.40024388]
[1763029579485,1.01484932,103160.0,103150.0,0.44244388]
[1763029580147,0.34483433,103160.0,103150.0,0.44244388]
[1763029580350,1.01484932,103160.0,103150.0,0.44244388]
[1763029582406,0.9966851,103160.0,103150.0,0.44244388]
[1763029582611,1.02578584,103160.0,103150.0,0.44244388]
[1763029583844,0.80244751,103160.0,103150.0,0.44244388]
[1763029585298,0.27222528,103160.0,103150.0,0.73915626]
[1763029585505,0.24312454,103160.0,103150.0,0.54526388]
[1763029585728,0.46646287,103160.0,103150.0,0.54526388]
[1763029585984,0.46646287,103160.0,103150.0,0.49935388]
[1763029586880,0.46646287,103160.0,103150.0,0.69324626]
[1763029587109,0.46646287,103160.0,103150.0,0.49935388]
[1763029587899,0.46646287,103160.0,103150.0,0.69324626]
[1763029588039,0.46646287,103160.0,103150.0,0.73915626]
[1763029588935,0.46646287,103160.0,103150.0,0.54526388]
[1763029589554,0.6898012,103160.0,103150.0,0.54526388]
[1763029590248,0.46646287,103160.0,103150.0,0.54526388]
[1763029590960,0.6898012,103160.0,103150.0,0.49935388]
[1763029591183,0.6898012,103160.0,103150.0,0.46685388]
[1763029591608,0.19492015,103160.0,103150.0,0.74032626]
[1763029591795,0.64159681,103160.0,103150.0,0.74032626]
[1763029592099,0.64159681,103160.0,103150.0,0.54643388]
[1763029593936,0.64159681,103160.0,103150.0,0.74032626]
[1763029594124,0.64159681,103160.0,103150.0,0.54643388]
[1763029594333,0.64159681,103160.0,103150.0,0.49847388]
[1763029594749,0.64159681,103160.0,103150.0,0.54643388]
[1763029596302,0.64159681,103160.0,103150.0,0.74032626]
[1763029597267,0.64159681,103160.0,103150.0,0.54643388]
[1763029597869,0.41825848,103160.0,103150.0,0.74032626]
[1763029599529,0.41825848,103160.0,103150.0,0.54643388]
[1763029599743,0.64159681,103160.0,103150.0,0.54643388]
[1763029599954,0.64159681,103160.0,103150.0,0.49847388]
[1763029601155,0.64159681,103160.0,103150.0,0.42465388]
[1763029601369,0.64159681,103160.0,103150.0,0.46685388]
[1763029601599,0.88560759,103160.0,103150.0,0.40024388]
[1763029601948,0.86493514,103160.0,103150.0,0.44244388]
[1763029602166,0.89403534,103160.0,103150.0,0.44244388]
[1763029604406,0.9121805,103160.0,103150.0,0.40024388]
[1763029604600,0.9121805,103160.0,103150.0,0.44244388]
[1763029604821,1.00857998,103160.0,103150.0,0.44244388]
[1763029605411,2.00159497,103160.0,103150.0,0.44244388]
[1763029605885,1.33157998,103160.0,103150.0,0.44244388]
[1763029606101,1.33057998,103160.0,103150.0,0.44244388]
[1763029606588,1.33157998,103160.0,103150.0,0.44244388]
[1763029607434,1.33157998,103160.0,103150.0,0.40024388]
[1763029613142,0.56516551,103160.0,103150.0,0.40024388]
[1763029613366,1.2351805,103160.0,103150.0,0.40024388]
[1763029613535,1.01184217,103160.0,103150.0,0.40024388]
[1763029614553,0.24216551,103160.0,103150.0,0.40024388]
[1763029614785,0.68884217,103160.0,103150.0,0.40024388]
[1763029615428,0.67069701,103160.0,103150.0,0.40024388]
[1763029618337,0.73445052,103160.0,103150.0,0.40024388]
[1763029618995,0.58566827,103160.0,103150.0,0.40024388]
[1763029619851,0.49281456,103160.0,103150.0,0.49231388]
[1763029620432,0.49281456,103160.0,103150.0,0.45078388]
[1763029620864,0.49281456,103160.0,103150.0,0.64467626]
[1763029621074,0.19492015,103160.0,103150.0,0.68620626]
[1763029621292,0.19492015,103160.0,103150.0,0.98410067]
[1763029621500,0.19492015,103160.0,103150.0,0.68620626]
[1763029622058,0.19392015,103160.0,103150.0,0.68620626]
[1763029622257,4.656e-05,103160.0,103150.0,0.68620626]
[1763029623459,4.656e-05,103160.0,103150.0,0.98410067]
[1763029624368,0.19392015,103160.0,103150.0,0.98410067]
[1763029624979,0.19392015,103160.0,103150.0,0.68620626]
[1763029625279,0.19392015,103160.0,103150.0,0.44244388]
[1763029625280,0.49181456,103160.0,103150.0,0.44244388]
[1763029625499,0.19392015,103160.0,103150.0,0.44244388]
[1763029625891,0.19392015,103160.0,103150.0,0.65732626]
[1763029626102,0.19392015,103160.0,103150.0,0.46343388]
[1763029626302,0.19392015,103160.0,103150.0,0.68639626]
[1763029626689,0.49181456,103160.0,103150.0,0.49250388]
[1763029628526,0.19392015,103160.0,103150.0,0.49250388]
[1763029628736,0.49181456,103160.0,103150.0,0.49250388]
[1763029630775,0.49181456,103160.0,103150.0,0.45030388]
[1763029631129,0.49181456,103160.0,103150.0,0.49250388]
[1763029632887,0.49181456,103160.0,103150.0,0.40024388]
[1763029633110,0.86600635,103160.0,103150.0,0.44244388]
[1763029633546,0.52091369,103160.0,103150.0,0.44244388]
[1763029638772,0.52091369,103160.0,103150.0,0.40024388]
[1763029638975,0.52091369,103160.0,103150.0,0.44244388]
[1763029640493,0.52091369,103160.0,103150.0,0.44240388]
[1763029641573,0.52091369,103160.0,103150.0,0.40024388]
[1763029641793,0.52091369,103160.0,103150.0,0.44240388]
[1763029642720,0.49181456,103160.0,103150.0,0.44240388]
[1763029643360,1.20716175,103160.0,103150.0,0.44240388]
[1763029643591,1.23626463,103160.0,103150.0,0.44240388]
[1763029644217,1.23626463,103160.0,103150.0,0.40024388]
[1763029644427,1.53515904,103160.0,103150.0,0.40024388]
[1763029644629,1.57857778,103160.0,103150.0,0.40024388]
[1763029644830,1.60857216,103160.0,103150.0,0.01024388]
[1763029645056,1.31067775,103160.0,103150.0,0.01024388]
[1763029645267,1.58765643,103160.0,103110.0,0.06236]
[1763029645477,1.58765643,103160.0,103100.0,0.06236]
[1763029645478,0.1939676,103110.0,103100.0,0.06236]
[1763029645683,0.1939676,103110.0,103100.0,0.12352001]
[1763029645895,0.49186201,103110.0,103100.0,0.08215001]
[1763029646075,0.5400664,103110.0,103100.0,0.08215001]
[1763029646275,0.5400664,103110.0,103100.0,0.06315]
[1763029646515,0.5400664,103110.0,103100.0,0.29620642]
[1763029646725,0.5400664,103110.0,103100.0,0.33804237]
[1763029647559,0.5400664,103110.0,103100.0,0.14405595]
[1763029647760,0.5400664,103110.0,103100.0,0.33804237]
[1763029648276,0.5400664,103110.0,103100.0,0.05262595]
[1763029650197,0.63646588,103110.0,103100.0,0.05266595]
[1763029650400,0.5400664,103110.0,103100.0,0.05266595]
[1763029650706,0.24217199,103110.0,103100.0,0.05266595]
[1763029650935,0.5400664,103110.0,103100.0,0.05266595]
[1763029651318,0.5400664,103110.0,103100.0,0.07468602]
[1763029651530,0.24217199,103110.0,103100.0,0.07468602]
[1763029651749,0.5400664,103110.0,103100.0,0.07468602]
[1763029653116,0.5400664,103110.0,103100.0,0.01168602]
[1763029653325,0.95946588,103110.0,103100.0,0.05388602]
[1763029653727,0.9885821,103110.0,103100.0,0.05388602]
[1763029654131,0.9885821,103110.0,103100.0,0.01168602]
[1763029654332,0.9885821,103110.0,103100.0,0.05388602]
[1763029655839,0.59428821,103110.0,103100.0,0.07468602]
[1763029656020,0.89218262,103110.0,103100.0,0.07468602]
[1763029656223,0.89218262,103110.0,103100.0,0.05388602]
[1763029659269,0.27128821,103110.0,103100.0,0.05388602]
[1763029659477,0.24217199,103110.0,103100.0,0.14178602]
[1763029659617,0.24217199,103110.0,103100.0,0.33577244]
[1763029661882,0.24217199,103110.0,103100.0,0.72577244]
[1763029662111,0.1939676,103110.0,103100.0,1.02366685]
[1763029662664,0.1939676,103110.0,103100.0,0.72577244]
[1763029665543,0.1939676,103110.0,103100.0,0.53178602]
[1763029666173,0.1939676,103110.0,103100.0,0.72577244]
[1763029668267,0.24217199,103110.0,103100.0,0.48958602]
[1763029668487,0.5400664,103110.0,103100.0,0.40168602]
[1763029668723,0.26026973,103110.0,103100.0,0.44388602]
[1763029669256,0.55816414,103110.0,103100.0,0.44388602]
[1763029671867,0.65456362,103110.0,103100.0,0.01168602]
[1763029672084,0.65456362,103110.0,103100.0,0.05388602]
[1763029672305,0.55816414,103110.0,103100.0,0.05388602]
[1763029676438,0.01809774,103110.0,103100.0,0.63366685]
[1763029676644,0.01809774,103110.0,103100.0,0.33577244]
[1763029676854,0.01809774,103110.0,103100.0,0.63366685]